lending/lending_fUSD_20240112
["ID","MTS","AMOUNT","RATE_DAILY","PERIOD"]
[311433514,1705098650079,-491.82942095,0.00037,7]
[311433515,1705098650089,-514.69617617,0.00037,4]
[311433516,1705098650098,-238.76668651,0.00037,4]
[311433517,1705098650108,-1295.9487082,0.00037,12]
[311433518,1705098650117,-1998.4,0.00037,2]
[311433519,1705098650127,-650.0,0.00037,3]
[311433520,1705098650136,-1996.2,0.00037,7]
[311433521,1705098650146,-4950.76,0.00037,7]
[311433522,1705098650156,-5809.21,0.00037,7]
[311433523,1705098650166,-1000.0,0.00037,2]
[311433524,1705098650179,-1000.0,0.00037,2]
[311433525,1705098650189,-1486.34,0.00037,3]
[311433526,1705098650198,-1486.34,0.00037,3]
[311433527,1705098650207,-1486.34,0.00037,3]
[311433528,1705098650216,-1486.34,0.00037,3]
[311433529,1705098650225,-1486.34,0.00037,3]
[311433530,1705098650235,-1486.34,0.00037,3]
[311433531,1705098650244,-1486.34,0.00037,3]
[311433532,1705098650253,-1486.34,0.00037,3]
[311433533,1705098650262,-1486.34,0.00037,3]
[311433534,1705098650272,-1486.34,0.00037,3]
[311433535,1705098650281,-1486.34,0.00037,3]
[311433536,1705098650290,-1486.34,0.00037,3]
[311433537,1705098650299,-1486.34,0.00037,3]
[311433538,1705098650309,-1486.34,0.00037,3]
[311433539,1705098650320,-1486.34,0.00037,3]
[311433540,1705098650329,-1486.34,0.00037,3]
[311433541,1705098650338,-1486.34,0.00037,3]
[311433542,1705098650348,-1486.34,0.00037,3]
[311433543,1705098650357,-1486.34,0.00037,3]
[311433544,1705098650367,-1486.34,0.00037,3]
[311433545,1705098650376,-309.04,0.00037,2]
[311433546,1705098650385,-157.81,0.00037,3]
[311433547,1705098650395,-437.17575228,0.00037,6]
[311433548,1705098650404,-182.472386,0.00037065,2]
[311433549,1705098650414,-8024.67,0.00037075,2]
[311433550,1705098650424,-1984.24446704,0.00037142,2]
[311433551,1705098650433,-500.0,0.0003716,7]
[311433552,1705098650443,-5902.92300323,0.00037173,10]
[311433553,1705098650452,-164.0,0.000372,2]
[311433554,1705098650462,-464.89225699,0.00037225,30]
[311433555,1705098650471,-311.22904358,0.00037225,120]
[311433556,1705098650481,-1995.9726602,0.00037225,2]
[311433557,1705098650490,-155.40803054,0.00037225,2]
[311433558,1705098650499,-5039.52361431,0.00037225,4]
[311433559,1705098650508,-21349.88086268,0.00037225,2]
[311433560,1705098650518,-1210.6843338,0.00037225,4]
[311433561,1705098650528,-1680.0,0.00037225,60]
[311433562,1705098650705,-481.34332455,0.00037225,120]
[311433563,1705098650715,-4402.04618685,0.00037225,4]
[311433564,1705098650725,-40653.45715217,0.00037225,4]
[311433565,1705098650734,-300.0,0.00037225,58]
[311433566,1705098650744,-305.136571,0.00037225,30]
[311433567,1705098650753,-1967.195732,0.00037225,30]
[311433568,1705098650762,-809.91503498,0.0003724,4]
[311433569,1705098650772,-502.4613842,0.0003727,2]
[311433570,1705098650782,-200.0,0.000373,2]
[311433571,1705098650792,-152.286792,0.00037368,2]
[311433572,1705098650801,-829.570304,0.00037368,2]
[311433573,1705098650811,-2488.710914,0.00037368,2]
[311433574,1705098650824,-274.116226,0.00037368,2]
[311433575,1705098650834,-3995.8,0.00037368,2]
[311433576,1705098650844,-392.679316,0.00037368,2]
[311433577,1705098650854,-222.061441,0.00037368,2]
[311433578,1705098650864,-392.679315,0.00037368,2]
[311433579,1705098650874,-222.061441,0.00037368,2]
[311433580,1705098650884,-270.62,0.00037369,2]
[311433581,1705098650893,-1996.2,0.000374,7]
[311433582,1705098650902,-4950.76,0.000374,7]
[311433583,1705098650912,-5809.21,0.000374,7]
[311433584,1705098650922,-153.84,0.00037443,2]
[311433585,1705098650931,-632.29842341,0.00037474,8]
[311433586,1705098650940,-187.82117888,0.00037476,8]
[311433587,1705098650950,-879.40467886,0.000375,12]
[311433588,1705098650960,-657.26697925,0.000375,2]
[311433589,1705098650972,-450.0,0.000375,3]
[311433590,1705098650983,-156.90919227,0.00037649,7]
[311433591,1705098650993,-182.472386,0.00037672,2]
[311433592,1705098651004,-156.90919227,0.00037793,7]
[311433593,1705098651014,-50000.0,0.000378,15]
[311433594,1705098651023,-1996.2,0.000378,7]
[311433595,1705098651033,-4950.76,0.000378,7]
[311433596,1705098651043,-5809.21,0.000378,7]
[311433597,1705098651089,-7498.4,0.00037808,2]
[311433598,1705098651099,-6901.16,0.00037808,2]
[311433599,1705098651110,-829.570304,0.00037824,2]
[311433600,1705098651120,-2488.710914,0.00037824,2]
[311433601,1705098651130,-274.116226,0.00037824,2]
[311433602,1705098651144,-3995.8,0.00037824,2]
[311433603,1705098651155,-392.679316,0.00037824,2]
[311433604,1705098651166,-222.061441,0.00037824,2]
[311433605,1705098651177,-392.679315,0.00037824,2]
[311433606,1705098651186,-222.061441,0.00037824,2]
[311433607,1705098651196,-155.27341829,0.0003784,7]
[311433608,1705098651206,-12779.0,0.0003789,3]
[311433609,1705098651215,-2271.59949238,0.00037897,2]
[311433610,1705098651226,-235.73,0.000379,2]
[311433611,1705098651237,-541179.1311505,0.000379,3]
[311433612,1705098651800,-1762.69175565,0.000379,3]
[311433613,1705098651839,-150.12,0.00033,2]
[311433614,1705098651851,-162.67431202,0.00035,2]
[311433615,1705098651860,-23.76367998,0.000379,3]
[311433616,1705098651873,-16843.99999998,0.000379,3]
[311433617,1705098651890,-255.14829,0.000379,3]
[311433618,1705098651901,-2922.42388657,0.000379,3]
[311433619,1705098651914,-5870.52360002,0.000379,3]
[311433620,1705098651927,-2662.47626527,0.000379,3]
[311433621,1705098651939,-6288.50840294,0.000379,3]
[311433622,1705098651968,-150.12,0.00033,2]
[311433623,1705098651979,-16659.96000002,0.000379,3]
[311433624,1705098651992,-399.64849654,0.000379,3]
[311433625,1705098652004,-280.0000073,0.000379,3]
[311433626,1705098652017,-1093.86011364,0.000379,3]
[311433627,1705098652029,-1041.04,0.000379,3]
[311433628,1705098652040,-8171.43687035,0.000379,3]
[311433629,1705098652053,-4611.73103133,0.000379,3]
[311433630,1705098652081,-150.12,0.00033,2]
[311433631,1705098652091,-2429.30891509,0.000379,3]
[311433632,1705098652102,-837.837,0.000379,3]
[311433633,1705098652114,-2119.8647903,0.000379,3]
[311433634,1705098652126,-389.9049995,0.000379,3]
[311433635,1705098652157,-150.12,0.00033,2]
[311433636,1705098652168,-39375.13392902,0.000379,3]
[311433637,1705098652178,-1000.0,0.00037905,2]
[311433638,1705098652190,-421.16,0.00037996,2]
[311433639,1705098652202,-2271.59949238,0.00037997,2]
[311433640,1705098652212,-100000.0,0.00038,8]
[311433641,1705098652223,-40000.0,0.00038,7]
[311433642,1705098652233,-167.27845364,0.00038,3]
[311433643,1705098652243,-1000.0,0.00038,8]
[311433644,1705098652254,-1000.0,0.00038,2]
[311433645,1705098652265,-108668.32846231,0.00038,4]
[311433646,1705098652275,-2000.0,0.00038,2]
[311433647,1705098652285,-56954.70741599,0.00038,4]
[311433648,1705098652296,-1000.0,0.00038,2]
[311433649,1705098652306,-1000.0,0.00038,2]
[311433650,1705098652316,-152.0,0.00038033,4]
[311433651,1705098652328,-5902.92300323,0.00038082,11]
[311433652,1705098652337,-1876.66,0.00038092,2]
[311433653,1705098652346,-406.05,0.00038092,2]
[311433654,1705098652356,-653.54549148,0.00038142,2]
[311433655,1705098652365,-1996.2,0.000382,7]
[311433656,1705098652375,-4950.76,0.000382,7]
[311433657,1705098652384,-5809.21,0.000382,7]
[311433658,1705098652394,-309.04,0.00038245,2]
[311433659,1705098652403,-500.0,0.00038256,7]
[311433660,1705098652413,-205.0,0.00038263,21]
[311433661,1705098652422,-152.286792,0.0003828,2]
[311433662,1705098652432,-829.570304,0.0003828,2]
[311433663,1705098652442,-274.116226,0.0003828,2]
[311433664,1705098652451,-2488.710914,0.0003828,2]
[311433665,1705098652460,-3995.8,0.0003828,2]
[311433666,1705098652470,-392.679316,0.0003828,2]
[311433667,1705098652479,-222.061441,0.0003828,2]
[311433668,1705098652489,-392.679315,0.0003828,2]
[311433669,1705098652499,-222.061441,0.0003828,2]
[311433670,1705098652509,-182.472387,0.0003828,2]
[311433671,1705098652519,-182.472386,0.0003828,2]
[311433672,1705098652529,-159.26062841,0.0003828,2]
[311433673,1705098652539,-152.55404131,0.00038312,7]
[311433674,1705098652548,-161.1494173,0.00038334,7]
[311433675,1705098652558,-8024.67,0.00038352,2]
[311433676,1705098652567,-150.0,0.00038355,2]
[311433677,1705098652579,-666.0,0.00038356,2]
[311433678,1705098652588,-153.84,0.00038356,2]
[311433679,1705098652596,-1000.0,0.0003836,10]
[311433680,1705098652606,-1000.0,0.0003836,10]
[311433681,1705098652615,-1000.0,0.00038361,10]
[311433682,1705098652624,-1000.0,0.00038387,10]
[311433683,1705098652634,-1000.0,0.000384,2]
[311433684,1705098652644,-8000.0,0.000384,2]
[311433685,1705098652661,-166.18119293,0.00038423,30]
[311433686,1705098652677,-1000.0,0.00038462,2]
[311433687,1705098652687,-500.0,0.00038465,5]
[311433688,1705098652697,-500.0,0.00038465,5]
[311433689,1705098652708,-500.0,0.00038465,5]
[311433690,1705098652977,-504.0,0.00038465,5]
[311433691,1705098652989,-500.0,0.00038465,5]
[311433692,1705098653000,-500.0,0.00038465,5]
[311433693,1705098653009,-500.0,0.00038465,5]
[311433694,1705098653019,-500.0,0.00038465,5]
[311433695,1705098653029,-489.02623996,0.000385,4]
[311433696,1705098653039,-155.32150449,0.00038519,7]
[311433697,1705098653050,-253.37020604,0.0003855,2]
[311433698,1705098653109,-215.07,0.0002863,2]
[311433699,1705098653119,-150.12,0.00033,2]
[311433700,1705098653129,-1745.02979396,0.0003855,2]
[311433701,1705098653140,-1996.2,0.000386,7]
[311433702,1705098653150,-4950.76,0.000386,7]
[311433703,1705098653161,-5809.21,0.000386,7]
[311433704,1705098653176,-662.95,0.000386,7]
[311433705,1705098653186,-156.96192971,0.00038624,7]
[311433706,1705098653197,-1984.24446704,0.0003872,2]
[311433707,1705098653208,-155.32150449,0.00038732,7]
[311433708,1705098653218,-26634.97072718,0.000388,4]
[311433709,1705098654602,-1048.67339224,0.00027593,2]
[311433710,1705098654613,-318.0,0.0002863,2]
[311433711,1705098654622,-507.0,0.0002863,2]
[311433712,1705098654633,-2304.07734728,0.00029399,2]
[311433713,1705098654642,-1999.21629512,0.00030727,2]
[311433714,1705098654651,-150.0,0.00031852,2]
[311433715,1705098654661,-150.12,0.00033,2]
[311433716,1705098654671,-150.12,0.00033,2]
[311433717,1705098654680,-150.12,0.00033,2]
[311433718,1705098654690,-150.12,0.00033,2]
[311433719,1705098654699,-150.12,0.00033,2]
[311433720,1705098654708,-150.12,0.00033,2]
[311433721,1705098654718,-150.12,0.00033,2]
[311433722,1705098654727,-150.12,0.00033,2]
[311433723,1705098654736,-150.12,0.00033,2]
[311433724,1705098654746,-150.12,0.00033,2]
[311433725,1705098654755,-150.12,0.00033,2]
[311433726,1705098654765,-150.12,0.00033,2]
[311433727,1705098654775,-150.12,0.00033,2]
[311433728,1705098654784,-150.12,0.00033,2]
[311433729,1705098654793,-150.12,0.00033,2]
[311433730,1705098654802,-150.12,0.00033,2]
[311433731,1705098654812,-150.12,0.00033,2]
[311433732,1705098654823,-150.12,0.00033,2]
[311433733,1705098654832,-150.12,0.00033,2]
[311433734,1705098654841,-150.12,0.00033,2]
[311433735,1705098654851,-150.12,0.00033,2]
[311433736,1705098654861,-150.12,0.00033,2]
[311433737,1705098654870,-1932.40603634,0.00033887,2]
[311433738,1705098654882,-775.80915422,0.00033887,2]
[311433739,1705098654894,-384.7700318,0.00033887,2]
[311433740,1705098654906,-486.81994,0.00033887,2]
[311433741,1705098654917,-4215.0,0.00033887,2]
[311433742,1705098654938,-201.78427875,0.00025,2]
[311433743,1705098654947,-150.12,0.00033,2]
[311433744,1705098654958,-6682.8188336,0.00033887,2]
[311433745,1705098655913,-900.89581426,0.00023798,2]
[311433746,1705098655929,-585.49045393,0.00023798,2]
[311433747,1705098655940,-2020.8320963,0.00023798,2]
[311433748,1705098655966,-3957.16671768,0.00023798,2]
[311433749,1705098655984,-47364.78080125,0.00023798,2]
[311433750,1705098656029,-99330.32342013,0.00023798,2]
[311433751,1705098656680,-5055.32159629,0.00023798,2]
[311433752,1705098656767,-506.70909012,0.00023798,2]
[311433753,1705098656917,-4232.55,0.00023798,2]
[311433754,1705098656929,-24730.0,0.00023798,2]
[311433755,1705098656941,-8535.5,0.00023798,2]
[311433756,1705098656973,-387.22029698,0.00023798,2]
[311433757,1705098656985,-344.40047423,0.00023798,2]
[311433758,1705098656996,-25302.47801255,0.00023798,2]
[311433759,1705098657008,-5793.26410653,0.00023798,2]
[311433760,1705098657060,-1886.71588147,0.00023798,2]
[311433761,1705098657071,-4215.81294229,0.00023798,2]
[311433762,1705098657085,-4211.3,0.00023798,2]
[311433763,1705098657096,-2128.8492,0.00023798,2]
[311433764,1705098657107,-3717.03159416,0.00023798,2]
[311433765,1705098657119,-1057.1400003,0.00023798,2]
[311433766,1705098657130,-1762.491456,0.00023798,2]
[311433768,1705098660551,219.95090379,0.00021445,2]
[311433769,1705098762429,1890.29828009,0.00021445,2]
[311433772,1705098892342,250.0,0.000192,2]
[311433835,1705099834313,-487.27860519,0.00022006,2]
[311433836,1705099834324,-65.95168926,0.00022007,2]
[311433837,1705099834337,-5206.48993712,0.00022007,2]
[311433838,1705099834346,-2321.4247528,0.00022008,2]
[311433839,1705099834374,-814.15802409,0.00022008,2]
[311433840,1705099834394,-5.57558039,0.00022008,2]
[311433841,1705099834403,-312.84391961,0.00022009,2]
[311433842,1705099834415,-904.59890069,0.00022009,2]
[311433843,1705099834427,-2107.80928037,0.00022009,2]
[311433844,1705099834438,-300.0,0.00022015,2]
[311433845,1705099834447,-762.90238041,0.00022016,2]
[311433846,1705099834457,-762.90238041,0.00022016,2]
[311433847,1705099834466,-2496.11727796,0.00022045,2]
[311433848,1705099834478,-614.479575,0.00022045,2]
[311433849,1705099834489,-6094.211328,0.00022045,2]
[311433850,1705099834521,-1889.99004518,0.00022045,2]
[311433851,1705099834533,-873.18579586,0.00022045,2]
[311433852,1705099834546,-4146.664078,0.00022045,2]
[311433853,1705099834556,-1570.383,0.000224,2]
[311433854,1705099834567,-1871.86187129,0.000225,2]
[311433855,1705099834579,-1912.71989411,0.000225,2]
[311433856,1705099834591,-610.44814184,0.000225,2]
[311433857,1705099834615,-7363.9653361,0.000225,2]
[311433858,1705099834626,-1327.31584275,0.000225,2]
[311433859,1705099834673,-968.97329241,0.000225,2]
[311433860,1705099834685,-547.4688403,0.000225,2]
[311433861,1705099834709,-4247.08294647,0.000225,2]
[311433862,1705099834729,-294.53592168,0.000225,2]
[311433863,1705099834740,-2682.83867055,0.000225,2]
[311433864,1705099834751,-311.06238185,0.000225,2]
[311433865,1705099834768,-708.82041095,0.000225,2]
[311433882,1705099838165,-332.21511702,0.000224,2]
[311433884,1705099838175,-480.1120503,0.000225,2]
[311433890,1705099838223,-12961.43791308,0.000225,2]
[311433893,1705099838235,-126546.97227254,0.000225,2]
[311433895,1705099838515,-1581.061535,0.000225,2]
[311433896,1705099838527,-637.25697,0.000225,2]
[311433897,1705099838574,-5710.99876003,0.000225,2]
[311433898,1705099838586,-948.92245727,0.000225,2]
[311433899,1705099838637,-475.25222268,0.000225,2]
[311433900,1705099838756,-4209.2,0.000225,2]
[311433901,1705099838767,-2705.67645439,0.000225,2]
[311433902,1705099838779,-325820.80645468,0.000225,2]
[311433903,1705099838788,-754.26,0.000225,2]
[311433904,1705099838797,-499.99,0.00022601,2]
[311433905,1705099838807,-4031.8,0.00022701,2]
[311433907,1705099838816,-2500.0,0.00022801,2]
[311433909,1705099838827,-150.0,0.00023,2]
[311433910,1705099838836,-322.93,0.0002345,2]
[311433912,1705099838845,-732.17,0.00023463,2]
[311433914,1705099838855,-1261.43,0.00023463,2]
[311433916,1705099838864,-724.18,0.00023559,2]
[311433917,1705099838873,-713.29,0.00023559,2]
[311433919,1705099838883,-2582.20400533,0.00023559,2]
[311433921,1705099838892,-724.02279719,0.00023797,2]
[311433923,1705099838901,-5618.0916962,0.00023797,2]
[311433925,1705099838911,-711.52,0.00023798,2]
[311433927,1705099838920,-420.0,0.00023923,2]
[311433929,1705099838929,-430.99724455,0.00024,2]
[311433931,1705099838939,-205.0,0.00024395,2]
[311433933,1705099838949,-37303.47102172,0.00024998,2]
[311433935,1705099838958,-162.07655107,0.00024999,2]
[311433937,1705099838967,-200.0,0.00025,2]
[311433939,1705099838976,-322.47609316,0.00025,2]
[311433941,1705099838985,-303.07385153,0.00025,2]
[311433943,1705099838994,-201.78427875,0.00025,2]
[311433944,1705099839004,-250.0,0.00025253,2]
[311433946,1705099839015,-173.39,0.00025258,2]
[311433948,1705099839024,-322.93,0.00025714,2]
[311433949,1705099839034,-587.0,0.00025995,2]
[311433950,1705099839043,-1000.0,0.00026115,2]
[311433951,1705099839052,-19281.05,0.00026167,2]
[311433952,1705099839061,-161.49,0.00026223,2]
[311433953,1705099839072,-150.0,0.00026277,2]
[311433955,1705099839081,-205.0,0.00026489,5]
[311433957,1705099839090,-4998.93,0.00026575,2]
[311433958,1705099839099,-4600.77,0.00026575,2]
[311433960,1705099839108,-2000.0,0.00027298,3]
[311433962,1705099839117,-250.0,0.00027397,2]
[311433964,1705099839127,-31671.95764429,0.0002759,2]
[311433966,1705099839136,-606.58746759,0.00027592,2]
[311433968,1705099839145,-161.49,0.00027745,2]
[311433970,1705099839154,-322.93,0.00027977,2]
[311433972,1705099839163,-687.85574589,0.00028,2]
[311433974,1705099839173,-823.0,0.00028248,2]
[311433976,1705099839182,-1164.92159165,0.00028583,6]
[311433978,1705099839191,-205.0,0.00028584,8]
[311433979,1705099839200,-24614.52809023,0.00028627,2]
[311433981,1705099839209,-161.49,0.00029267,2]
[311433982,1705099839218,-884.0,0.00029322,2]
[311433984,1705099839228,-250.0,0.00029322,2]
[311433986,1705099839237,-156.0,0.00029322,2]
[311433988,1705099839246,-197.0,0.00029322,2]
[311433990,1705099839255,-226.399,0.00029322,2]
[311433992,1705099839265,-171.0,0.00029322,2]
[311433994,1705099839274,-236.164,0.00029322,2]
[311433996,1705099839283,-250.0,0.00029322,2]
[311433998,1705099839292,-162.554,0.00029322,2]
[311434000,1705099839301,-1000.0,0.00029379,2]
[311434002,1705099839309,-451.96819577,0.00029399,2]
[311434004,1705099839318,-239.23240074,0.00029399,2]
[311434006,1705099839329,-719.652636,0.000294,2]
[311434007,1705099839337,-719.652636,0.000294,2]
[311434009,1705099839347,-19105.65798421,0.000295,2]
[311434012,1705099839357,-712.53,0.0002969,2]
[311434013,1705099839367,-217.40113,0.00029997,2]
[311434015,1705099839376,-4542.7184588,0.0003,4]
[311434017,1705099839387,-155.0,0.0003,2]
[311434019,1705099839397,-77805.83153156,0.0003,4]
[311434033,1705099839516,-4689.73851574,0.0003,4]
[311434035,1705099839527,-3100.1100846,0.0003,4]
[311434157,1705099840642,-1151.26747937,0.00027,2]
[311434159,1705099840652,-18865.45865681,0.0003,4]
[311434199,1705099841151,-16058.8523321,0.0003,4]
[311434206,1705099841210,-19888.28751494,0.0003,4]
[311434209,1705099841221,-1011.71621491,0.0003,4]
[311434428,1705099843130,-401.72230598,0.00026999,2]
[311434432,1705099843142,-120.4618476,0.00026999,2]
[311434435,1705099843151,-150.0,0.00029322,2]
[311434438,1705099843160,-200.0,0.000299,10]
[311434440,1705099843169,-26838.62169502,0.0003,4]
[311434443,1705099843189,-1033.24612658,0.0003,4]
[311434446,1705099843201,-1505.43504103,0.0003,4]
[311434452,1705099843238,-835.198312,0.0003,4]
[311434454,1705099843249,-332.50831749,0.0003,4]
[311434456,1705099843261,-19148.06393516,0.0003,4]
[311434472,1705099843405,-1786.08284388,0.0003,4]
[311434474,1705099843416,-898.9000003,0.0003,4]
[311434477,1705099843432,-2464.50716502,0.0003,4]
[311434479,1705099843444,-299.3399996,0.0003,4]
[311434481,1705099843456,-362.0466143,0.0003,4]
[311434483,1705099843467,-5749.98934409,0.0003,4]
[311434487,1705099843487,-2893.1887583,0.0003,4]
[311434489,1705099843498,-3114.51788127,0.0003,4]
[311434491,1705099843510,-2422.63404998,0.0003,4]
[311434493,1705099843523,-2250.0,0.0003,4]
[311434794,1705099846188,-95098.53580896,0.0003,4]
[311434796,1705099846198,-1177.07132484,0.0003,2]
[311434798,1705099846207,-6851.60015863,0.0003,4]
[311434800,1705099846216,-153.84,0.00030137,2]
[311434802,1705099846225,-719.652636,0.00030206,2]
[311434804,1705099846235,-322.93,0.00030241,2]
[311434806,1705099846244,-4186.4746618,0.00030248,2]
[311434808,1705099846253,-200.0,0.00030633,3]
[311434810,1705099846262,-205.0,0.00030678,12]
[311434812,1705099846272,-344.0,0.00030696,2]
[311434814,1705099846281,-161.49,0.00030789,2]
[311434816,1705099846290,-803.9697,0.00030798,2]
[311434818,1705099846299,-287.71847632,0.00030896,4]
[311434820,1705099846309,-323.7960329,0.00030896,4]
[311434822,1705099846318,-311.74164615,0.00030896,4]
[311434824,1705099846328,-155.72150371,0.000309,2]
[311434826,1705099846338,-153.84,0.0003105,2]
[311434828,1705099846347,-719.652636,0.00031073,2]
[311434831,1705099846356,-800.0,0.00031235,5]
[311434833,1705099846366,-19334.7131,0.00031305,2]
[311434835,1705099846375,-250.0,0.00031305,2]
[311434837,1705099846384,-4186.47466178,0.00031396,3]
[311434838,1705099846393,-500.0,0.000315,2]
[311434840,1705099846403,-235.73,0.00031507,2]
[311434843,1705099846412,-719.652636,0.0003194,2]
[311434845,1705099846422,-153.84,0.00031963,2]
[311434846,1705099846431,-13056.05779594,0.00032,4]
[311434848,1705099846440,-297.49420797,0.00032,4]
[311434850,1705099846450,-155.93679021,0.00032,4]
[311434852,1705099846460,-200.0,0.00032154,2]
[311434854,1705099846469,-161.49,0.00032311,2]
[311434856,1705099846478,-322.93,0.00032505,2]
[311434858,1705099846487,-4186.47466178,0.00032543,4]
[311434860,1705099846496,-1000.0,0.00032644,2]
[311434862,1705099846505,-205.0,0.00032772,15]
[311434864,1705099846518,-719.652636,0.00032808,2]
[311434866,1705099846527,-160.0,0.00032876,3]
[311434868,1705099846537,-153.84,0.00032877,2]
[311434870,1705099846546,-679.39,0.00032877,15]
[311434872,1705099846555,-200.0,0.00032908,10]
[311434874,1705099846564,-800.0,0.00032908,5]
[311434876,1705099846573,-150.13,0.00033,2]
[311434878,1705099846584,-150.13,0.00033,2]
[311434880,1705099846593,-150.13,0.00033,2]
[311434882,1705099846603,-150.13,0.00033,2]
[311434884,1705099846612,-150.13,0.00033,2]
[311434886,1705099846621,-150.13,0.00033,2]
[311434889,1705099846631,-150.13,0.00033,2]
[311434892,1705099846640,-150.13,0.00033,2]
[311434894,1705099846650,-150.13,0.00033,2]
[311434897,1705099846659,-150.13,0.00033,2]
[311434939,1705099846921,-150.13,0.00033,2]
[311434942,1705099846932,-150.13,0.00033,2]
[311434944,1705099846942,-150.13,0.00033,2]
[311434945,1705099846951,-150.13,0.00033,2]
[311434947,1705099846961,-150.13,0.00033,2]
[311434949,1705099846972,-150.13,0.00033,2]
[311434951,1705099846982,-150.13,0.00033,2]
[311434952,1705099846992,-150.13,0.00033,2]
[311434953,1705099847002,-150.13,0.00033,2]
[311434954,1705099847012,-150.13,0.00033,2]
[311434955,1705099847022,-150.13,0.00033,2]
[311434956,1705099847032,-150.13,0.00033,2]
[311434957,1705099847043,-150.13,0.00033,2]
[311434958,1705099847053,-150.13,0.00033,2]
[311434960,1705099847062,-150.13,0.00033,2]
[311434961,1705099847072,-150.13,0.00033,2]
[311434963,1705099847082,-150.13,0.00033,2]
[311434965,1705099847091,-150.13,0.00033,2]
[311434967,1705099847100,-150.13,0.00033,2]
[311434968,1705099847110,-150.13,0.00033,2]
[311434969,1705099847119,-150.13,0.00033,2]
[311434970,1705099847129,-150.13,0.00033,2]
[311434971,1705099847139,-150.13,0.00033,2]
[311434972,1705099847149,-150.13,0.00033,2]
[311434973,1705099847158,-150.13,0.00033,2]
[311434974,1705099847168,-150.13,0.00033,2]
[311434975,1705099847177,-150.13,0.00033,2]
[311434976,1705099847187,-150.13,0.00033,2]
[311434977,1705099847196,-150.13,0.00033,2]
[311434978,1705099847205,-150.13,0.00033,2]
[311434979,1705099847214,-150.13,0.00033,2]
[311434980,1705099847224,-150.13,0.00033,2]
[311434981,1705099847233,-150.13,0.00033,2]
[311434982,1705099847243,-1897.0,0.00033073,5]
[311434983,1705099847253,-200.0,0.00033555,2]
[311434984,1705099847262,-150.13,0.00033665,2]
[311434985,1705099847272,-719.652636,0.00033675,2]
[311434986,1705099847282,-4186.47466178,0.00033691,5]
[311434987,1705099847291,-153.84,0.0003379,2]
[311434988,1705099847300,-161.49,0.00033833,2]
[311434989,1705099847310,-150.13,0.00033876,2]
[311434990,1705099847319,-150.13,0.00033876,2]
[311434991,1705099847328,-5930.2320448,0.00033885,4]
[311434992,1705099847338,-533.7952539,0.00033885,4]
[311434993,1705099847347,-166.75700048,0.00033885,4]
[311434994,1705099847356,-2179.99139161,0.00033885,2]
[311434995,1705099847365,-248.6803691,0.00033885,2]
[311434996,1705099847374,-4462.19336513,0.00033886,4]
[311434997,1705099847383,-214.21334139,0.00033886,4]
[311434998,1705099847392,-16104.75327751,0.00033886,2]
[311434999,1705099847401,-1161.9461004,0.00033886,4]
[311435000,1705099847410,-327.51793651,0.00033886,4]
[311435001,1705099847420,-500.0,0.000339,12]
[311435002,1705099847429,-150.13,0.00033944,2]
[311435003,1705099847439,-150.13,0.00033944,2]
[311435004,1705099847448,-30025.56494784,0.00033954,10]
[311435005,1705099847457,-1426.21433502,0.00033954,10]